[Event "Titled Tuesday Blitz May 24 Early 2022"]
[White "Martin, Lewis"]
[Black "Stevens, Christian"]
[WhiteFideId "410551"]
[BlackFideId "2604450"]
[WhiteElo "2145"]
[BlackElo "2490"]
[Result "0-1"]
[Round "08"]
[TimeControl "180+1"]
[Date "2022.05.25"]
[WhiteClock "0:00:03"]
[BlackClock "0:00:04"]

1. e4 {[%clk 0:02:59]}  c5 {[%clk 0:02:52]} 2. Nf3 {[%clk 0:02:59]}  e6 {[%clk 0:02:52]} 3. d4 {[%clk 0:02:59]}  cxd4 {[%clk 0:02:52]} 4. Nxd4 {[%clk 0:03:00]}  a6 {[%clk 0:02:52]} 5. Nc3 {[%clk 0:02:59]}  Qc7 {[%clk 0:02:52]} 6. g3 {[%clk 0:02:58]}  Nc6 {[%clk 0:02:51]} 7. Nde2 {[%clk 0:02:57]}  Bc5 {[%clk 0:02:49]} 8. Bg2 {[%clk 0:02:57]}  Nf6 {[%clk 0:02:49]} 9. O-O {[%clk 0:02:57]}  h5 {[%clk 0:02:43]} 10. Bf4 {[%clk 0:02:31]}  Ne5 {[%clk 0:02:42]} 11. h3 {[%clk 0:01:46]}  b5 {[%clk 0:02:12]} 12. a3 {[%clk 0:01:41]}  Bb7 {[%clk 0:02:12]} 13. Qd2 {[%clk 0:01:31]}  d6 {[%clk 0:00:55]} 14. Bxe5 {[%clk 0:01:26]}  dxe5 {[%clk 0:00:54]} 15. Nc1 {[%clk 0:01:26]}  h4 {[%clk 0:00:51]} 16. g4 {[%clk 0:01:24]}  Rd8 {[%clk 0:00:44]} 17. Nd3 {[%clk 0:01:23]}  Bd4 {[%clk 0:00:41]} 18. Rfe1 {[%clk 0:01:13]}  O-O {[%clk 0:00:35]} 19. Qg5 {[%clk 0:00:53]}  Nh7 {[%clk 0:00:23]} 20. Qxh4 {[%clk 0:00:52]}  Bxc3 {[%clk 0:00:22]} 21. bxc3 {[%clk 0:00:51]}  Qxc3 {[%clk 0:00:23]} 22. g5 {[%clk 0:00:40]}  Rfe8 {[%clk 0:00:19]} 23. g6 {[%clk 0:00:32]}  fxg6 {[%clk 0:00:18]} 24. Bf3 {[%clk 0:00:28]}  Nf8 {[%clk 0:00:11]} 25. Qg5 {[%clk 0:00:27]}  Qxc2 {[%clk 0:00:06]} 26. Nxe5 {[%clk 0:00:26]}  Qc3 {[%clk 0:00:06]} 27. Rac1 {[%clk 0:00:09]}  Qxa3 {[%clk 0:00:06]} 28. Rc7 {[%clk 0:00:08]}  Qa5 {[%clk 0:00:05]} 29. Rf7 {[%clk 0:00:07]}  Qxe1+ {[%clk 0:00:03]} 30. Kg2 {[%clk 0:00:06]}  Bxe4 {[%clk 0:00:04]} 31. Bxe4 {[%clk 0:00:05]}  Qxe4+ {[%clk 0:00:04]} 32. f3 {[%clk 0:00:05]}  Qe2+ {[%clk 0:00:02]} 33. Kg3 {[%clk 0:00:05]}  Rd2 {[%clk 0:00:03]} 34. Kh4 {[%clk 0:00:03]}  Qf2+ {[%clk 0:00:02]} 35. Kg4 {[%clk 0:00:01]}  Qg2+ {[%clk 0:00:03]} 36. Kh4 {[%clk 0:00:01]}  Qxg5+ {[%clk 0:00:03]} 37. Kxg5 {[%clk 0:00:02]}  Rd5 {[%clk 0:00:03]} 38. f4 {[%clk 0:00:02]}  Rxe5+ {[%clk 0:00:03]} 39. fxe5 {[%clk 0:00:03]}  Kxf7 {[%clk 0:00:04]} 0-1


[Site "https://www.chess.com"]

[Event "Titled Tuesday Blitz May 24 Early 2022"]
[White "Martinez, Shawn"]
[Black "Lutz, Igor Oscar"]
[WhiteFideId "2039770"]
[BlackFideId "2110806"]
[WhiteElo "2174"]
[BlackElo "1723"]
[Result "1-0"]
[Round "08"]
[TimeControl "180+1"]
[Date "2022.05.25"]
[WhiteClock "0:00:06"]
[BlackClock "0:00:20"]

1. e4 {[%clk 0:02:59]}  c5 {[%clk 0:02:59]} 2. Nc3 {[%clk 0:02:58]}  e6 {[%clk 0:02:59]} 3. g3 {[%clk 0:02:57]}  Nc6 {[%clk 0:02:59]} 4. Nge2 {[%clk 0:02:57]}  Nge7 {[%clk 0:02:57]} 5. Bg2 {[%clk 0:02:57]}  g6 {[%clk 0:02:58]} 6. d4 {[%clk 0:02:55]}  cxd4 {[%clk 0:02:57]} 7. Nxd4 {[%clk 0:02:43]}  Bg7 {[%clk 0:02:57]} 8. Be3 {[%clk 0:02:36]}  O-O {[%clk 0:02:52]} 9. O-O {[%clk 0:02:34]}  a6 {[%clk 0:02:50]} 10. Qd2 {[%clk 0:02:31]}  Qc7 {[%clk 0:02:36]} 11. a4 {[%clk 0:02:27]}  Ne5 {[%clk 0:02:30]} 12. b3 {[%clk 0:02:20]}  b6 {[%clk 0:02:20]} 13. h3 {[%clk 0:02:14]}  Bb7 {[%clk 0:02:19]} 14. f4 {[%clk 0:02:12]}  N5c6 {[%clk 0:02:16]} 15. Nce2 {[%clk 0:02:08]}  Rac8 {[%clk 0:02:15]} 16. c4 {[%clk 0:02:04]}  Nxd4 {[%clk 0:02:01]} 17. Bxd4 {[%clk 0:01:40]}  Bxd4+ {[%clk 0:01:58]} 18. Nxd4 {[%clk 0:01:39]}  d5 {[%clk 0:01:49]} 19. cxd5 {[%clk 0:01:26]}  exd5 {[%clk 0:01:49]} 20. e5 {[%clk 0:01:25]}  Qc3 {[%clk 0:01:33]} 21. Qf2 {[%clk 0:01:24]}  Nf5 {[%clk 0:01:28]} 22. Nxf5 {[%clk 0:01:10]}  gxf5 {[%clk 0:01:28]} 23. Kh2 {[%clk 0:01:00]}  Qxb3 {[%clk 0:01:15]} 24. Rab1 {[%clk 0:00:56]}  Qxa4 {[%clk 0:01:12]} 25. Rxb6 {[%clk 0:00:48]}  Rc7 {[%clk 0:01:12]} 26. Qb2 {[%clk 0:00:43]}  Ba8 {[%clk 0:01:00]} 27. Rf2 {[%clk 0:00:27]}  d4 {[%clk 0:00:46]} 28. Bxa8 {[%clk 0:00:24]}  Rxa8 {[%clk 0:00:46]} 29. Rb8+ {[%clk 0:00:25]}  Rc8 {[%clk 0:00:46]} 30. Rxa8 {[%clk 0:00:20]}  Rxa8 {[%clk 0:00:46]} 31. Qb7 {[%clk 0:00:20]}  Rd8 {[%clk 0:00:34]} 32. e6 {[%clk 0:00:12]}  Qe8 {[%clk 0:00:29]} 33. exf7+ {[%clk 0:00:09]}  Qxf7 {[%clk 0:00:29]} 34. Qb6 {[%clk 0:00:09]}  d3 {[%clk 0:00:21]} 35. Qxd8+ {[%clk 0:00:07]}  Kg7 {[%clk 0:00:21]} 36. Qd4+ {[%clk 0:00:07]}  Kg6 {[%clk 0:00:21]} 37. Qxd3 {[%clk 0:00:08]}  a5 {[%clk 0:00:20]} 38. g4 {[%clk 0:00:06]} 1-0


[Site "https://www.chess.com"]

[Event "Titled Tuesday Blitz May 24 Early 2022"]
[White "Matlakov, Maxim"]
[Black "Riehle, Marco"]
[WhiteFideId "4168003"]
[BlackFideId "12904392"]
[WhiteElo "2669"]
[BlackElo "2462"]
[Result "1-0"]
[Round "08"]
[TimeControl "180+1"]
[Date "2022.05.24"]
[WhiteClock "0:00:11"]
[BlackClock "0:00:14"]

1. d4 {[%clk 0:03:00]}  d5 {[%clk 0:02:59]} 2. Nf3 {[%clk 0:03:00]}  e6 {[%clk 0:02:59]} 3. c4 {[%clk 0:03:01]}  Nf6 {[%clk 0:02:58]} 4. g3 {[%clk 0:02:58]}  dxc4 {[%clk 0:02:58]} 5. Bg2 {[%clk 0:02:57]}  Nc6 {[%clk 0:02:57]} 6. O-O {[%clk 0:02:52]}  Rb8 {[%clk 0:02:52]} 7. Nc3 {[%clk 0:02:52]}  Be7 {[%clk 0:02:51]} 8. Qa4 {[%clk 0:02:51]}  O-O {[%clk 0:02:50]} 9. Qxc4 {[%clk 0:02:50]}  a6 {[%clk 0:02:49]} 10. Rd1 {[%clk 0:02:49]}  Nb4 {[%clk 0:02:46]} 11. e4 {[%clk 0:02:37]}  b5 {[%clk 0:02:44]} 12. Qe2 {[%clk 0:02:36]}  Bb7 {[%clk 0:02:40]} 13. a3 {[%clk 0:02:33]}  Nc6 {[%clk 0:02:39]} 14. d5 {[%clk 0:02:30]}  exd5 {[%clk 0:02:37]} 15. e5 {[%clk 0:02:28]}  Nd7 {[%clk 0:02:26]} 16. Nxd5 {[%clk 0:02:26]}  Re8 {[%clk 0:02:24]} 17. e6 {[%clk 0:02:24]}  fxe6 {[%clk 0:02:20]} 18. Qxe6+ {[%clk 0:02:21]}  Kh8 {[%clk 0:02:20]} 19. Bf4 {[%clk 0:01:23]}  Bd6 {[%clk 0:02:11]} 20. Qh3 {[%clk 0:01:22]}  Nf8 {[%clk 0:02:04]} 21. Nxc7 {[%clk 0:01:06]}  Qxc7 {[%clk 0:01:45]} 22. Bxd6 {[%clk 0:01:06]}  Qb6 {[%clk 0:01:44]} 23. Bxb8 {[%clk 0:01:01]}  Rxb8 {[%clk 0:01:45]} 24. Ng5 {[%clk 0:01:01]}  Ne5 {[%clk 0:01:37]} 25. Qf5 {[%clk 0:00:54]}  Bxg2 {[%clk 0:01:33]} 26. Qxe5 {[%clk 0:00:47]}  Ba8 {[%clk 0:01:29]} 27. Nf7+ {[%clk 0:00:42]}  Kg8 {[%clk 0:01:27]} 28. Ng5 {[%clk 0:00:33]}  Qc6 {[%clk 0:01:25]} 29. f3 {[%clk 0:00:31]}  h6 {[%clk 0:01:11]} 30. Ne4 {[%clk 0:00:30]}  Re8 {[%clk 0:01:11]} 31. Qd4 {[%clk 0:00:30]}  Qg6 {[%clk 0:01:00]} 32. Re1 {[%clk 0:00:27]}  Qf7 {[%clk 0:00:58]} 33. Kg2 {[%clk 0:00:24]}  Ne6 {[%clk 0:00:58]} 34. Qf2 {[%clk 0:00:23]}  Rf8 {[%clk 0:00:56]} 35. Rad1 {[%clk 0:00:20]}  Ng5 {[%clk 0:00:52]} 36. Nxg5 {[%clk 0:00:20]}  hxg5 {[%clk 0:00:53]} 37. Re3 {[%clk 0:00:18]}  g4 {[%clk 0:00:53]} 38. Rde1 {[%clk 0:00:18]}  Bxf3+ {[%clk 0:00:49]} 39. Kg1 {[%clk 0:00:18]}  Qc4 {[%clk 0:00:45]} 40. Re8 {[%clk 0:00:18]}  Rxe8 {[%clk 0:00:42]} 41. Rxe8+ {[%clk 0:00:18]}  Kh7 {[%clk 0:00:42]} 42. Re1 {[%clk 0:00:18]}  Kg8 {[%clk 0:00:36]} 43. h4 {[%clk 0:00:18]}  Bc6 {[%clk 0:00:30]} 44. Kh2 {[%clk 0:00:18]}  Qd5 {[%clk 0:00:29]} 45. Qe2 {[%clk 0:00:17]}  Kh8 {[%clk 0:00:27]} 46. Qf2 {[%clk 0:00:17]}  Kg8 {[%clk 0:00:26]} 47. Rf1 {[%clk 0:00:15]}  Bd7 {[%clk 0:00:18]} 48. Qf8+ {[%clk 0:00:15]}  Kh7 {[%clk 0:00:18]} 49. Qf4 {[%clk 0:00:14]}  Kg8 {[%clk 0:00:18]} 50. Qe3 {[%clk 0:00:12]}  Bc6 {[%clk 0:00:17]} 51. Qe2 {[%clk 0:00:11]}  a5 {[%clk 0:00:17]} 52. b4 {[%clk 0:00:11]}  a4 {[%clk 0:00:16]} 53. Rd1 {[%clk 0:00:11]}  Qf7 {[%clk 0:00:16]} 54. Rd8+ {[%clk 0:00:11]}  Kh7 {[%clk 0:00:16]} 55. Qc2+ {[%clk 0:00:11]}  g6 {[%clk 0:00:13]} 56. Qxc6 {[%clk 0:00:11]}  g5 {[%clk 0:00:14]} 57. Qe4+ {[%clk 0:00:10]}  Kg7 {[%clk 0:00:14]} 58. Qe5+ {[%clk 0:00:10]}  Kh7 {[%clk 0:00:13]} 59. Rh8+ {[%clk 0:00:10]}  Kg6 {[%clk 0:00:14]} 60. h5# {[%clk 0:00:11]} 1-0


[Site "https://www.chess.com"]

[Event "Titled Tuesday Blitz May 24 Early 2022"]
[White "Meunier-Pion, Jean"]
[Black "Avinash, Ramesh"]
[WhiteFideId "20685327"]
[BlackFideId "45018340"]
[WhiteElo "2124"]
[BlackElo "1875"]
[Result "1-0"]
[Round "08"]
[TimeControl "180+1"]
[Date "2022.05.25"]
[WhiteClock "0:00:02"]
[BlackClock "0:01:03"]

1. e4 {[%clk 0:03:00]}  c6 {[%clk 0:02:57]} 2. d4 {[%clk 0:03:00]}  d5 {[%clk 0:02:57]} 3. e5 {[%clk 0:03:01]}  Bf5 {[%clk 0:02:55]} 4. Nf3 {[%clk 0:03:01]}  Nd7 {[%clk 0:02:44]} 5. Be2 {[%clk 0:03:01]}  e6 {[%clk 0:02:44]} 6. O-O {[%clk 0:03:02]}  h6 {[%clk 0:02:42]} 7. Nbd2 {[%clk 0:03:01]}  Ne7 {[%clk 0:02:42]} 8. Nb3 {[%clk 0:03:01]}  Nc8 {[%clk 0:02:40]} 9. a4 {[%clk 0:03:01]}  Be7 {[%clk 0:02:38]} 10. Be3 {[%clk 0:03:00]}  O-O {[%clk 0:02:36]} 11. Ne1 {[%clk 0:02:58]}  c5 {[%clk 0:02:33]} 12. c3 {[%clk 0:02:55]}  cxd4 {[%clk 0:02:29]} 13. cxd4 {[%clk 0:02:54]}  Ncb6 {[%clk 0:02:28]} 14. g4 {[%clk 0:02:47]}  Bh7 {[%clk 0:02:28]} 15. f4 {[%clk 0:02:46]}  Nc4 {[%clk 0:02:25]} 16. Bc1 {[%clk 0:02:46]}  Rc8 {[%clk 0:02:24]} 17. Bd3 {[%clk 0:02:36]}  Bxd3 {[%clk 0:02:22]} 18. Qxd3 {[%clk 0:02:29]}  Qb6 {[%clk 0:02:21]} 19. a5 {[%clk 0:02:26]}  Qc6 {[%clk 0:02:19]} 20. Nf3 {[%clk 0:02:09]}  f6 {[%clk 0:02:14]} 21. exf6 {[%clk 0:01:37]}  Nxf6 {[%clk 0:02:12]} 22. Qg6 {[%clk 0:01:28]}  Qe8 {[%clk 0:02:09]} 23. Qxe8 {[%clk 0:01:19]}  Rfxe8 {[%clk 0:02:09]} 24. g5 {[%clk 0:01:11]}  Ne4 {[%clk 0:02:03]} 25. gxh6 {[%clk 0:01:08]}  gxh6 {[%clk 0:02:04]} 26. f5 {[%clk 0:01:05]}  exf5 {[%clk 0:02:03]} 27. Bxh6 {[%clk 0:01:05]}  Nxb2 {[%clk 0:01:56]} 28. Bf4 {[%clk 0:00:56]}  Nd3 {[%clk 0:01:51]} 29. Ne5 {[%clk 0:00:55]}  Rc3 {[%clk 0:01:29]} 30. Nc1 {[%clk 0:00:22]}  Nxf4 {[%clk 0:01:25]} 31. Rxf4 {[%clk 0:00:21]}  Bg5 {[%clk 0:01:25]} 32. Rf1 {[%clk 0:00:14]}  Be3+ {[%clk 0:01:25]} 33. Kh1 {[%clk 0:00:14]}  Bxd4 {[%clk 0:01:23]} 34. Nf3 {[%clk 0:00:08]}  Rxf3 {[%clk 0:01:23]} 35. Rxf3 {[%clk 0:00:08]}  Bxa1 {[%clk 0:01:22]} 36. Rxf5 {[%clk 0:00:09]}  d4 {[%clk 0:01:13]} 37. Nd3 {[%clk 0:00:06]}  Bc3 {[%clk 0:01:14]} 38. Kg2 {[%clk 0:00:06]}  Rf8 {[%clk 0:01:11]} 39. Rb5 {[%clk 0:00:05]}  Nd6 {[%clk 0:01:09]} 40. Rd5 {[%clk 0:00:05]}  Rf6 {[%clk 0:01:08]} 41. h4 {[%clk 0:00:03]}  Kf7 {[%clk 0:01:08]} 42. h5 {[%clk 0:00:04]}  Ke6 {[%clk 0:01:07]} 43. Rg5 {[%clk 0:00:02]}  Rf5 {[%clk 0:01:06]} 44. Rg6+ {[%clk 0:00:02]}  Kd5 {[%clk 0:01:06]} 45. Rh6 {[%clk 0:00:02]}  Rg5+ {[%clk 0:01:05]} 46. Kf3 {[%clk 0:00:02]}  Rf5+ {[%clk 0:01:04]} 47. Nf4+ {[%clk 0:00:03]}  Ke5 {[%clk 0:01:03]} 48. Re6# {[%clk 0:00:02]} 1-0


[Site "https://www.chess.com"]

[Event "Titled Tuesday Blitz May 24 Early 2022"]
[White "Mikhalsky, Vladimir"]
[Black "Eynullayev, Atilla"]
[WhiteFideId "14144352"]
[BlackFideId "13413570"]
[WhiteElo "2301"]
[BlackElo "1936"]
[Result "1-0"]
[Round "08"]
[TimeControl "180+1"]
[Date "2022.05.25"]
[WhiteClock "0:00:10"]
[BlackClock "0:00:04"]

1. e4 {[%clk 0:02:58]}  c5 {[%clk 0:02:59]} 2. Nf3 {[%clk 0:02:57]}  d6 {[%clk 0:03:00]} 3. Bb5+ {[%clk 0:02:57]}  Nd7 {[%clk 0:03:00]} 4. O-O {[%clk 0:02:51]}  a6 {[%clk 0:02:59]} 5. Be2 {[%clk 0:02:51]}  Ngf6 {[%clk 0:02:59]} 6. Nc3 {[%clk 0:02:47]}  e6 {[%clk 0:02:58]} 7. d4 {[%clk 0:02:44]}  cxd4 {[%clk 0:02:58]} 8. Nxd4 {[%clk 0:02:43]}  Be7 {[%clk 0:02:58]} 9. b3 {[%clk 0:02:38]}  O-O {[%clk 0:02:56]} 10. Bb2 {[%clk 0:02:39]}  Qc7 {[%clk 0:02:57]} 11. f4 {[%clk 0:02:32]}  b5 {[%clk 0:02:54]} 12. Bf3 {[%clk 0:02:26]}  Bb7 {[%clk 0:02:54]} 13. Kh1 {[%clk 0:02:25]}  b4 {[%clk 0:02:49]} 14. Na4 {[%clk 0:02:21]}  Nxe4 {[%clk 0:02:40]} 15. Qe1 {[%clk 0:02:12]}  d5 {[%clk 0:02:19]} 16. c4 {[%clk 0:01:48]}  bxc3 {[%clk 0:02:10]} 17. Nxc3 {[%clk 0:01:48]}  Nxc3 {[%clk 0:02:10]} 18. Bxc3 {[%clk 0:01:48]}  Bf6 {[%clk 0:02:08]} 19. Rc1 {[%clk 0:01:45]}  Rfe8 {[%clk 0:01:50]} 20. Ba1 {[%clk 0:01:39]}  Qd6 {[%clk 0:01:44]} 21. Qg3 {[%clk 0:00:49]}  g6 {[%clk 0:01:34]} 22. Rfe1 {[%clk 0:00:44]}  Nc5 {[%clk 0:01:22]} 23. Rcd1 {[%clk 0:00:42]}  Bg7 {[%clk 0:01:07]} 24. Qh4 {[%clk 0:00:35]}  Qd8 {[%clk 0:00:58]} 25. Qf2 {[%clk 0:00:31]}  Qb8 {[%clk 0:00:53]} 26. Nf5 {[%clk 0:00:26]}  exf5 {[%clk 0:00:39]} 27. Qxc5 {[%clk 0:00:24]}  Rxe1+ {[%clk 0:00:36]} 28. Rxe1 {[%clk 0:00:24]}  Qxf4 {[%clk 0:00:36]} 29. Qb6 {[%clk 0:00:17]}  Bxa1 {[%clk 0:00:06]} 30. Qxb7 {[%clk 0:00:14]}  Rb8 {[%clk 0:00:06]} 31. Qxd5 {[%clk 0:00:14]}  Bf6 {[%clk 0:00:07]} 32. Qd7 {[%clk 0:00:13]}  Be5 {[%clk 0:00:05]} 33. Kg1 {[%clk 0:00:04]}  Qxh2+ {[%clk 0:00:06]} 34. Kf2 {[%clk 0:00:03]}  Qh1 {[%clk 0:00:06]} 35. Rxh1 {[%clk 0:00:02]}  Rf8 {[%clk 0:00:03]} 36. Qd5 {[%clk 0:00:03]}  Bf6 {[%clk 0:00:03]} 37. Re1 {[%clk 0:00:03]}  Bh4+ {[%clk 0:00:03]} 38. Kf1 {[%clk 0:00:04]}  Bxe1 {[%clk 0:00:02]} 39. Kxe1 {[%clk 0:00:04]}  Re8+ {[%clk 0:00:03]} 40. Kf1 {[%clk 0:00:04]}  Kg7 {[%clk 0:00:04]} 41. Qd4+ {[%clk 0:00:05]}  Kh6 {[%clk 0:00:04]} 42. Qc4 {[%clk 0:00:06]}  Re6 {[%clk 0:00:05]} 43. Qc1+ {[%clk 0:00:06]}  Kg7 {[%clk 0:00:05]} 44. Qf4 {[%clk 0:00:07]}  h6 {[%clk 0:00:05]} 45. Qc4 {[%clk 0:00:07]}  g5 {[%clk 0:00:05]} 46. Bd5 {[%clk 0:00:08]}  Rf6 {[%clk 0:00:05]} 47. Qd4 {[%clk 0:00:08]}  Kg6 {[%clk 0:00:06]} 48. g4 {[%clk 0:00:09]}  fxg4+ {[%clk 0:00:06]} 49. Kg2 {[%clk 0:00:09]}  h5 {[%clk 0:00:06]} 50. Be4+ {[%clk 0:00:10]}  Kg7 {[%clk 0:00:06]} 51. Qe5 {[%clk 0:00:10]}  h4 {[%clk 0:00:04]} 52. Qxg5+ {[%clk 0:00:10]} 1-0


[Site "https://www.chess.com"]

[Event "Titled Tuesday Blitz May 24 Early 2022"]
[White "Navalgund, Niranjan"]
[Black "Jian, Alex"]
[WhiteFideId "5030854"]
[BlackFideId "30901022"]
[WhiteElo "2290"]
[BlackElo "2111"]
[Result "1-0"]
[Round "08"]
[TimeControl "180+1"]
[Date "2022.05.25"]
[WhiteClock "0:00:52"]
[BlackClock "0:00:02"]

1. e4 {[%clk 0:02:58]}  c5 {[%clk 0:02:59]} 2. b4 {[%clk 0:02:57]}  cxb4 {[%clk 0:02:59]} 3. a3 {[%clk 0:02:57]}  d5 {[%clk 0:02:59]} 4. exd5 {[%clk 0:02:55]}  Qxd5 {[%clk 0:02:58]} 5. Nf3 {[%clk 0:02:56]}  e5 {[%clk 0:02:52]} 6. c4 {[%clk 0:02:56]}  Qd8 {[%clk 0:02:33]} 7. d4 {[%clk 0:02:50]}  exd4 {[%clk 0:02:28]} 8. Be2 {[%clk 0:02:49]}  Nf6 {[%clk 0:02:10]} 9. O-O {[%clk 0:02:41]}  Nc6 {[%clk 0:02:10]} 10. axb4 {[%clk 0:02:15]}  Bxb4 {[%clk 0:02:09]} 11. Ba3 {[%clk 0:02:14]}  Bxa3 {[%clk 0:02:05]} 12. Nxa3 {[%clk 0:02:15]}  O-O {[%clk 0:01:54]} 13. Nb5 {[%clk 0:02:14]}  Bg4 {[%clk 0:01:39]} 14. Nfxd4 {[%clk 0:01:51]}  Nxd4 {[%clk 0:01:31]} 15. Nxd4 {[%clk 0:01:50]}  Bxe2 {[%clk 0:01:26]} 16. Nxe2 {[%clk 0:01:51]}  Qxd1 {[%clk 0:01:19]} 17. Rfxd1 {[%clk 0:01:28]}  Rfc8 {[%clk 0:01:19]} 18. Rdb1 {[%clk 0:01:21]}  Rc7 {[%clk 0:01:11]} 19. Nd4 {[%clk 0:01:19]}  a6 {[%clk 0:01:08]} 20. c5 {[%clk 0:01:17]}  g6 {[%clk 0:00:56]} 21. c6 {[%clk 0:01:16]}  bxc6 {[%clk 0:00:53]} 22. Rb6 {[%clk 0:01:13]}  Nd5 {[%clk 0:00:38]} 23. Rxc6 {[%clk 0:01:09]}  Rxc6 {[%clk 0:00:36]} 24. Nxc6 {[%clk 0:01:10]}  Kf8 {[%clk 0:00:34]} 25. f3 {[%clk 0:01:05]}  Ke8 {[%clk 0:00:34]} 26. Ra5 {[%clk 0:01:04]}  Nb6 {[%clk 0:00:23]} 27. Nb4 {[%clk 0:01:03]}  Nc4 {[%clk 0:00:17]} 28. Rc5 {[%clk 0:01:00]}  Nd6 {[%clk 0:00:14]} 29. Rc6 {[%clk 0:00:57]}  Kd7 {[%clk 0:00:14]} 30. Rxa6 {[%clk 0:00:57]}  Rxa6 {[%clk 0:00:12]} 31. Nxa6 {[%clk 0:00:58]}  Kc6 {[%clk 0:00:13]} 32. Nb4+ {[%clk 0:00:58]}  Kc5 {[%clk 0:00:13]} 33. Nc2 {[%clk 0:00:57]}  Kc4 {[%clk 0:00:13]} 34. Kf2 {[%clk 0:00:57]}  Nf5 {[%clk 0:00:12]} 35. Ne3+ {[%clk 0:00:57]}  Nxe3 {[%clk 0:00:10]} 36. Kxe3 {[%clk 0:00:58]}  Kd5 {[%clk 0:00:11]} 37. Kf4 {[%clk 0:00:58]}  f6 {[%clk 0:00:10]} 38. h4 {[%clk 0:00:57]}  h5 {[%clk 0:00:10]} 39. g4 {[%clk 0:00:58]}  Ke6 {[%clk 0:00:06]} 40. Ke4 {[%clk 0:00:50]}  f5+ {[%clk 0:00:06]} 41. gxf5+ {[%clk 0:00:50]}  gxf5+ {[%clk 0:00:06]} 42. Kd4 {[%clk 0:00:50]}  Kd6 {[%clk 0:00:06]} 43. f4 {[%clk 0:00:50]}  Ke6 {[%clk 0:00:04]} 44. Kc5 {[%clk 0:00:50]}  Ke7 {[%clk 0:00:02]} 45. Kd5 {[%clk 0:00:51]}  Kf6 {[%clk 0:00:01]} 46. Kd6 {[%clk 0:00:51]}  Kf7 {[%clk 0:00:01]} 47. Ke5 {[%clk 0:00:51]}  Kg6 {[%clk 0:00:02]} 48. Ke6 {[%clk 0:00:51]}  Kg7 {[%clk 0:00:02]} 49. Kxf5 {[%clk 0:00:52]} 1-0


[Site "https://www.chess.com"]

[Event "Titled Tuesday Blitz May 24 Early 2022"]
[White "Papasimakopoulos, Alexandros"]
[Black "Tregubov, Pavel V."]
[WhiteFideId "4244125"]
[BlackFideId "4115341"]
[WhiteElo "2340"]
[BlackElo "2341"]
[Result "0-1"]
[Round "08"]
[TimeControl "180+1"]
[Date "2022.05.25"]
[WhiteClock "0:00:16"]
[BlackClock "0:00:17"]

1. d4 {[%clk 0:03:00]}  Nf6 {[%clk 0:02:59]} 2. c4 {[%clk 0:03:00]}  e6 {[%clk 0:03:00]} 3. Nc3 {[%clk 0:03:00]}  Bb4 {[%clk 0:03:00]} 4. Qc2 {[%clk 0:02:59]}  c5 {[%clk 0:03:00]} 5. dxc5 {[%clk 0:02:59]}  O-O {[%clk 0:03:00]} 6. Nf3 {[%clk 0:03:00]}  Na6 {[%clk 0:02:59]} 7. Bg5 {[%clk 0:02:59]}  Nxc5 {[%clk 0:02:59]} 8. e3 {[%clk 0:02:59]}  Nce4 {[%clk 0:02:57]} 9. Bxf6 {[%clk 0:02:59]}  Qxf6 {[%clk 0:02:54]} 10. Rc1 {[%clk 0:02:56]}  Nxc3 {[%clk 0:02:52]} 11. bxc3 {[%clk 0:02:56]}  Ba5 {[%clk 0:02:44]} 12. Bd3 {[%clk 0:02:55]}  h6 {[%clk 0:02:42]} 13. O-O {[%clk 0:02:49]}  b6 {[%clk 0:02:40]} 14. Be4 {[%clk 0:02:46]}  Rb8 {[%clk 0:02:40]} 15. Nd4 {[%clk 0:02:46]}  Ba6 {[%clk 0:02:34]} 16. Nb5 {[%clk 0:02:29]}  Rfc8 {[%clk 0:02:33]} 17. Qd3 {[%clk 0:02:20]}  Bxb5 {[%clk 0:02:15]} 18. cxb5 {[%clk 0:02:19]}  d5 {[%clk 0:02:16]} 19. Bf3 {[%clk 0:02:15]}  Rxc3 {[%clk 0:02:13]} 20. Rxc3 {[%clk 0:02:15]}  Bxc3 {[%clk 0:02:12]} 21. Rc1 {[%clk 0:02:12]}  Rc8 {[%clk 0:02:12]} 22. Bd1 {[%clk 0:02:05]}  Rc5 {[%clk 0:02:11]} 23. Bc2 {[%clk 0:02:02]}  g6 {[%clk 0:02:11]} 24. Bb3 {[%clk 0:02:00]}  Kg7 {[%clk 0:02:10]} 25. g3 {[%clk 0:01:59]}  h5 {[%clk 0:02:10]} 26. h4 {[%clk 0:01:59]}  Bb2 {[%clk 0:02:07]} 27. Rb1 {[%clk 0:01:50]}  Be5 {[%clk 0:02:05]} 28. Kg2 {[%clk 0:01:49]}  Bc7 {[%clk 0:02:02]} 29. Rd1 {[%clk 0:01:48]}  Qb2 {[%clk 0:01:58]} 30. Rd2 {[%clk 0:01:45]}  Qe5 {[%clk 0:01:56]} 31. Bd1 {[%clk 0:01:39]}  Rc3 {[%clk 0:01:54]} 32. Qe2 {[%clk 0:01:35]}  Bd6 {[%clk 0:01:54]} 33. Bb3 {[%clk 0:01:34]}  Bc5 {[%clk 0:01:54]} 34. Rc2 {[%clk 0:01:31]}  Qe4+ {[%clk 0:01:40]} 35. Kg1 {[%clk 0:01:27]}  d4 {[%clk 0:01:34]} 36. Rxc3 {[%clk 0:01:19]}  dxc3 {[%clk 0:01:31]} 37. Bc2 {[%clk 0:01:07]}  Qb4 {[%clk 0:01:26]} 38. Qd3 {[%clk 0:01:06]}  Be7 {[%clk 0:01:23]} 39. a4 {[%clk 0:01:06]}  Bf6 {[%clk 0:01:23]} 40. Kg2 {[%clk 0:01:06]}  Qc5 {[%clk 0:01:09]} 41. Kg1 {[%clk 0:01:04]}  Kf8 {[%clk 0:01:04]} 42. Qd7 {[%clk 0:01:04]}  Qd5 {[%clk 0:00:49]} 43. Qxa7 {[%clk 0:00:51]}  Qd2 {[%clk 0:00:46]} 44. Qa8+ {[%clk 0:00:51]}  Kg7 {[%clk 0:00:46]} 45. Qe4 {[%clk 0:00:51]}  Qc1+ {[%clk 0:00:35]} 46. Kg2 {[%clk 0:00:52]}  Qd2 {[%clk 0:00:35]} 47. a5 {[%clk 0:00:32]}  bxa5 {[%clk 0:00:35]} 48. b6 {[%clk 0:00:32]}  Qd6 {[%clk 0:00:32]} 49. b7 {[%clk 0:00:32]}  Qc7 {[%clk 0:00:32]} 50. Kg1 {[%clk 0:00:26]}  Be5 {[%clk 0:00:31]} 51. Kg2 {[%clk 0:00:20]}  Qc5 {[%clk 0:00:31]} 52. Kg1 {[%clk 0:00:18]}  Bc7 {[%clk 0:00:31]} 53. Qd3 {[%clk 0:00:18]}  Qb4 {[%clk 0:00:30]} 54. Qe4 {[%clk 0:00:16]}  Qxe4 {[%clk 0:00:29]} 55. Bxe4 {[%clk 0:00:17]}  Kf6 {[%clk 0:00:29]} 56. Bc2 {[%clk 0:00:16]}  Ke5 {[%clk 0:00:29]} 57. Kf1 {[%clk 0:00:17]}  Kd5 {[%clk 0:00:27]} 58. Ke2 {[%clk 0:00:17]}  Kc4 {[%clk 0:00:27]} 59. Kd1 {[%clk 0:00:18]}  Kb4 {[%clk 0:00:27]} 60. Kc1 {[%clk 0:00:18]}  a4 {[%clk 0:00:28]} 61. Kb1 {[%clk 0:00:17]}  a3 {[%clk 0:00:27]} 62. Bd3 {[%clk 0:00:18]}  Bd6 {[%clk 0:00:26]} 63. Bc2 {[%clk 0:00:16]}  Ka5 {[%clk 0:00:24]} 64. Ka2 {[%clk 0:00:16]}  Kb6 {[%clk 0:00:23]} 65. Kb3 {[%clk 0:00:17]}  Kxb7 {[%clk 0:00:22]} 66. Bb1 {[%clk 0:00:17]}  Bb4 {[%clk 0:00:19]} 67. Bd3 {[%clk 0:00:16]}  Kb6 {[%clk 0:00:18]} 68. Bc4 {[%clk 0:00:16]}  Kc5 {[%clk 0:00:18]} 69. Bd3 {[%clk 0:00:16]}  f5 {[%clk 0:00:18]} 70. Bb1 {[%clk 0:00:16]}  e5 {[%clk 0:00:18]} 71. Bc2 {[%clk 0:00:15]}  e4 {[%clk 0:00:18]} 72. Bb1 {[%clk 0:00:15]}  c2 {[%clk 0:00:18]} 73. Kxc2 {[%clk 0:00:13]}  Be1 {[%clk 0:00:18]} 74. Kd1 {[%clk 0:00:14]}  Bxf2 {[%clk 0:00:19]} 75. g4 {[%clk 0:00:15]}  hxg4 {[%clk 0:00:17]} 76. Ke2 {[%clk 0:00:16]}  Bxh4 {[%clk 0:00:17]} 0-1


[Site "https://www.chess.com"]